Workbook

Sheet North
B2: North
C3: Month 1 | D3: Month 2 | E3: Month 3 | F3: Month 4 | G3: Month 5 | H3: Month 6 | I3: Month 7 | J3: Month 8 | K3: Month 9 | L3: Month 10 | M3: Month 11 | N3: Month 12
B4: Revenue
B5: Product A | C5: 1000 | D5: 1000 | E5: 1000 | F5: 1000 | G5: 1000 | H5: 1000 | I5: 1000 | J5: 1000 | K5: 1000 | L5: 1000 | M5: 1000 | N5: 1000
B6: Product B | C6: 1100 | D6: 1100 | E6: 1100 | F6: 1100 | G6: 1100 | H6: 1100 | I6: 1100 | J6: 1100 | K6: 1100 | L6: 1100 | M6: 1100 | N6: 1100
B7: Product C | C7: 1200 | D7: 1200 | E7: 1200 | F7: 1200 | G7: 1200 | H7: 1200 | I7: 1200 | J7: 1200 | K7: 1200 | L7: 1200 | M7: 1200 | N7: 1200
B8: Total revenue | C8: =SUM(C5:C7) -> 3300 | D8: =SUM(D5:D7) -> 3300 | E8: 3300 | F8: 3300 | G8: 3300 | H8: 3300 | I8: 3300 | J8: 3300 | K8: 3300 | L8: 3300 | M8: 3300 | N8: 3300
B10: Cost of Sales
B11: Purchases | C11: -400 | D11: -400 | E11: -400 | F11: -400 | G11: -400 | H11: -400 | I11: -400 | J11: -400 | K11: -400 | L11: -400 | M11: -400 | N11: -400
B12: Postage | C12: -200 | D12: -200 | E12: -200 | F12: -200 | G12: -200 | H12: -200 | I12: -200 | J12: -200 | K12: -200 | L12: -200 | M12: -200 | N12: -200
B13: Total cost of sales | C13: =SUM(C11:C12) -> -600 | D13: =SUM(D11:D12) -> -600 | E13: -600 | F13: -600 | G13: -600 | H13: -600 | I13: -600 | J13: -600 | K13: -600 | L13: -600 | M13: -600 | N13: -600
B15: Gross Margin | C15: =C8+C13 -> 2700 | D15: =D8+D13 -> 2700 | E15: 2700 | F15: 2700 | G15: 2700 | H15: 2700 | I15: 2700 | J15: 2700 | K15: 2700 | L15: 2700 | M15: 2700 | N15: 2700
B17: Gm% | C17: =C15/C8 -> 0.8181818182 | D17: =D15/D8 -> 0.8181818182 | E17: 0.8181818182 | F17: 0.8181818182 | G17: 0.8181818182 | H17: 0.8181818182 | I17: 0.8181818182 | J17: 0.8181818182 | K17: 0.8181818182 | L17: 0.8181818182 | M17: 0.8181818182 | N17: 0.8181818182
B19: Overheads | C19: -900 | D19: -900 | E19: -900 | F19: -900 | G19: -900 | H19: -900 | I19: -900 | J19: -900 | K19: -900 | L19: -900 | M19: -900 | N19: -900
B21: Net profit | C21: =SUM(C15:C20) -> 1800.818182 | D21: 1800.818182 | E21: 1800.818182 | F21: 1800.818182 | G21: 1800.818182 | H21: 1800.818182 | I21: 1800.818182 | J21: 1800.818182 | K21: 1800.818182 | L21: 1800.818182 | M21: 1800.818182 | N21: 1800.818182

Sheet South West
B2: South
C3: Month 1 | D3: Month 2 | E3: Month 3 | F3: Month 4 | G3: Month 5 | H3: Month 6 | I3: Month 7 | J3: Month 8 | K3: Month 9 | L3: Month 10 | M3: Month 11 | N3: Month 12
B4: Revenue
B5: Product A | C5: 2000 | D5: 2000 | E5: 2000 | F5: 2000 | G5: 2000 | H5: 2000 | I5: 2000 | J5: 2000 | K5: 2000 | L5: 2000 | M5: 2000 | N5: 2000
B6: Product B | C6: 2200 | D6: 2200 | E6: 2200 | F6: 2200 | G6: 2200 | H6: 2200 | I6: 2200 | J6: 2200 | K6: 2200 | L6: 2200 | M6: 2200 | N6: 2200
B7: Product C | C7: 2400 | D7: 2400 | E7: 2400 | F7: 2400 | G7: 2400 | H7: 2400 | I7: 2400 | J7: 2400 | K7: 2400 | L7: 2400 | M7: 2400 | N7: 2400
B8: Total revenue | C8: =SUM(C5:C7) -> 6600 | D8: =SUM(D5:D7) -> 6600 | E8: 6600 | F8: 6600 | G8: 6600 | H8: 6600 | I8: 6600 | J8: 6600 | K8: 6600 | L8: 6600 | M8: 6600 | N8: 6600
B10: Cost of Sales
B11: Purchases | C11: -200 | D11: -200 | E11: -200 | F11: -200 | G11: -200 | H11: -200 | I11: -200 | J11: -200 | K11: -200 | L11: -200 | M11: -200 | N11: -200
B12: Postage | C12: -400 | D12: -400 | E12: -400 | F12: -400 | G12: -400 | H12: -400 | I12: -400 | J12: -400 | K12: -400 | L12: -400 | M12: -400 | N12: -400
B13: Total cost of sales | C13: =SUM(C11:C12) -> -600 | D13: =SUM(D11:D12) -> -600 | E13: -600 | F13: -600 | G13: -600 | H13: -600 | I13: -600 | J13: -600 | K13: -600 | L13: -600 | M13: -600 | N13: -600
B15: Gross Margin | C15: =C8+C13 -> 6000 | D15: =D8+D13 -> 6000 | E15: 6000 | F15: 6000 | G15: 6000 | H15: 6000 | I15: 6000 | J15: 6000 | K15: 6000 | L15: 6000 | M15: 6000 | N15: 6000
B17: GM% | C17: =C15/C8 -> 0.9090909091 | D17: =D15/D8 -> 0.9090909091 | E17: 0.9090909091 | F17: 0.9090909091 | G17: 0.9090909091 | H17: 0.9090909091 | I17: 0.9090909091 | J17: 0.9090909091 | K17: 0.9090909091 | L17: 0.9090909091 | M17: 0.9090909091 | N17: 0.9090909091
B19: Overheads | C19: -1800 | D19: -1800 | E19: -1800 | F19: -1800 | G19: -1800 | H19: -1800 | I19: -1800 | J19: -1800 | K19: -1800 | L19: -1800 | M19: -1800 | N19: -1800
B21: Net profit | C21: =SUM(C15:C20) -> 4200.909091 | D21: =SUM(D15:D20) -> 4200.909091 | E21: 4200.909091 | F21: 4200.909091 | G21: 4200.909091 | H21: 4200.909091 | I21: 4200.909091 | J21: 4200.909091 | K21: 4200.909091 | L21: 4200.909091 | M21: 4200.909091 | N21: 4200.909091

Sheet East
B2: East
C3: Month 1 | D3: Month 2 | E3: Month 3 | F3: Month 4 | G3: Month 5 | H3: Month 6 | I3: Month 7 | J3: Month 8 | K3: Month 9 | L3: Month 10 | M3: Month 11 | N3: Month 12
B4: Revenue
B5: Product A | C5: 500 | D5: 500 | E5: 500 | F5: 500 | G5: 500 | H5: 500 | I5: 500 | J5: 500 | K5: 500 | L5: 500 | M5: 500 | N5: 500
B6: Product B | C6: 550 | D6: 550 | E6: 550 | F6: 550 | G6: 550 | H6: 550 | I6: 550 | J6: 550 | K6: 550 | L6: 550 | M6: 550 | N6: 550
B7: Product C | C7: 600 | D7: 600 | E7: 600 | F7: 600 | G7: 600 | H7: 600 | I7: 600 | J7: 600 | K7: 600 | L7: 600 | M7: 600 | N7: 600
B8: Total revenue | C8: =SUM(C5:C7) -> 1650 | D8: =SUM(D5:D7) -> 1650 | E8: 1650 | F8: 1650 | G8: 1650 | H8: 1650 | I8: 1650 | J8: 1650 | K8: 1650 | L8: 1650 | M8: 1650 | N8: 1650
B10: Cost of Sales
B11: Purchases | C11: -250 | D11: -250 | E11: -250 | F11: -250 | G11: -250 | H11: -250 | I11: -250 | J11: -250 | K11: -250 | L11: -250 | M11: -250 | N11: -250
B12: Postage | C12: -100 | D12: -100 | E12: -100 | F12: -100 | G12: -100 | H12: -100 | I12: -100 | J12: -100 | K12: -100 | L12: -100 | M12: -100 | N12: -100
B13: Total cost of sales | C13: =SUM(C11:C12) -> -350 | D13: =SUM(D11:D12) -> -350 | E13: -350 | F13: -350 | G13: -350 | H13: -350 | I13: -350 | J13: -350 | K13: -350 | L13: -350 | M13: -350 | N13: -350
B15: Gross Margin | C15: =C8+C13 -> 1300 | D15: =D8+D13 -> 1300 | E15: 1300 | F15: 1300 | G15: 1300 | H15: 1300 | I15: 1300 | J15: 1300 | K15: 1300 | L15: 1300 | M15: 1300 | N15: 1300
B17: Gm% | C17: =C15/C8 -> 0.7878787879 | D17: =D15/D8 -> 0.7878787879 | E17: 0.7878787879 | F17: 0.7878787879 | G17: 0.7878787879 | H17: 0.7878787879 | I17: 0.7878787879 | J17: 0.7878787879 | K17: 0.7878787879 | L17: 0.7878787879 | M17: 0.7878787879 | N17: 0.7878787879
B19: Overheads | C19: -450 | D19: -450 | E19: -450 | F19: -450 | G19: -450 | H19: -450 | I19: -450 | J19: -450 | K19: -450 | L19: -450 | M19: -450 | N19: -450
B21: Net profit | C21: =SUM(C15:C20) -> 850.7878788 | D21: =SUM(D15:D20) -> 850.7878788 | E21: 850.7878788 | F21: 850.7878788 | G21: 850.7878788 | H21: 850.7878788 | I21: 850.7878788 | J21: 850.7878788 | K21: 850.7878788 | L21: 850.7878788 | M21: 850.7878788 | N21: 850.7878788

Sheet West
B2: West
C3: Month 1 | D3: Month 2 | E3: Month 3 | F3: Month 4 | G3: Month 5 | H3: Month 6 | I3: Month 7 | J3: Month 8 | K3: Month 9 | L3: Month 10 | M3: Month 11 | N3: Month 12
B4: Revenue
B5: Product A | C5: 400 | D5: 400 | E5: 400 | F5: 400 | G5: 400 | H5: 400 | I5: 400 | J5: 400 | K5: 400 | L5: 400 | M5: 400 | N5: 400
B6: Product B | C6: 440 | D6: 440 | E6: 440 | F6: 440 | G6: 440 | H6: 440 | I6: 440 | J6: 440 | K6: 440 | L6: 440 | M6: 440 | N6: 440
B7: Product C | C7: 480 | D7: 480 | E7: 480 | F7: 480 | G7: 480 | H7: 480 | I7: 480 | J7: 480 | K7: 480 | L7: 480 | M7: 480 | N7: 480
B8: Total revenue | C8: =SUM(C5:C7) -> 1320 | D8: =SUM(D5:D7) -> 1320 | E8: 1320 | F8: 1320 | G8: 1320 | H8: 1320 | I8: 1320 | J8: 1320 | K8: 1320 | L8: 1320 | M8: 1320 | N8: 1320
B10: Cost of Sales
B11: Purchases | C11: -400 | D11: -400 | E11: -400 | F11: -400 | G11: -400 | H11: -400 | I11: -400 | J11: -400 | K11: -400 | L11: -400 | M11: -400 | N11: -400
B12: Postage | C12: -80 | D12: -80 | E12: -80 | F12: -80 | G12: -80 | H12: -80 | I12: -80 | J12: -80 | K12: -80 | L12: -80 | M12: -80 | N12: -80
B13: Total cost of sales | C13: =SUM(C11:C12) -> -480 | D13: =SUM(D11:D12) -> -480 | E13: -480 | F13: -480 | G13: -480 | H13: -480 | I13: -480 | J13: -480 | K13: -480 | L13: -480 | M13: -480 | N13: -480
B15: Gross Margin | C15: =C8+C13 -> 840 | D15: =D8+D13 -> 840 | E15: 840 | F15: 840 | G15: 840 | H15: 840 | I15: 840 | J15: 840 | K15: 840 | L15: 840 | M15: 840 | N15: 840
B17: Gm% | C17: =C15/C8 -> 0.6363636364 | D17: =D15/D8 -> 0.6363636364 | E17: 0.6363636364 | F17: 0.6363636364 | G17: 0.6363636364 | H17: 0.6363636364 | I17: 0.6363636364 | J17: 0.6363636364 | K17: 0.6363636364 | L17: 0.6363636364 | M17: 0.6363636364 | N17: 0.6363636364
B19: Overheads | C19: -360 | D19: -360 | E19: -360 | F19: -360 | G19: -360 | H19: -360 | I19: -360 | J19: -360 | K19: -360 | L19: -360 | M19: -360 | N19: -360
B21: Net profit | C21: =SUM(C15:C20) -> 480.6363636 | D21: =SUM(D15:D20) -> 480.6363636 | E21: 480.6363636 | F21: 480.6363636 | G21: 480.6363636 | H21: 480.6363636 | I21: 480.6363636 | J21: 480.6363636 | K21: 480.6363636 | L21: 480.6363636 | M21: 480.6363636 | N21: 480.6363636

Sheet Checks
A1: =AND(A2:A28) ->  | B1: = Master Check | D1: B | I1: C | O1: How to get list of sheet names dynamically (implimented in cells D3:G3 on this sheet)
C2: Sheet position | D2: 1 | E2: 2 | F2: 3 | G2: 4
C3: Sheet name | D3: =INDEX(_xlfn.TEXTAFTER(Names_Sheets,"]"),D2) ->  | E3: =INDEX(_xlfn.TEXTAFTER(Names_Sheets,"]"),E2) ->  | F3: =INDEX(_xlfn.TEXTAFTER(Names_Sheets,"]"),F2) ->  | G3: =INDEX(_xlfn.TEXTAFTER(Names_Sheets,"]"),G2) ->  | I3: =D3 ->  | J3: =E3 ->  | O3: Step 1: Generate a list of all worksheet names by creating a defined name - ex. in Excel 2007, go to Formulas > Name Manager
A4: =AND(D4=E4:G4) ->  | C4: =_xlfn.SEQUENCE(25,1,1,1) -> 1 | D4: =INDIRECT("'"&D$3&"'!"&$D$1&$C4) ->  | E4: =INDIRECT("'"&E$3&"'!"&$D$1&$C4) ->  | F4: =INDIRECT("'"&F$3&"'!"&$D$1&$C4) ->  | G4: =INDIRECT("'"&G$3&"'!"&$D$1&$C4) ->  | I4: =_xlfn.IFNA(_xlfn.FORMULATEXT(INDIRECT("'"&I$3&"'!"&$I$1&$C4)),"") ->  | J4: =_xlfn.IFNA(_xlfn.FORMULATEXT(INDIRECT("'"&J$3&"'!"&$I$1&$C4)),"") ->  | K4: =_xlfn.IFNA(_xlfn.FORMULATEXT(INDIRECT("'"&K$3&"'!"&$I$1&$C4)),"") ->  | L4: =_xlfn.IFNA(_xlfn.FORMULATEXT(INDIRECT("'"&L$3&"'!"&$I$1&$C4)),"") ->  | O4: Name: Names_Sheets
C5: 2 | D5: =INDIRECT("'"&D$3&"'!"&$D$1&$C5) ->  | E5: =INDIRECT("'"&E$3&"'!"&$D$1&$C5) ->  | F5: =INDIRECT("'"&F$3&"'!"&$D$1&$C5) ->  | G5: =INDIRECT("'"&G$3&"'!"&$D$1&$C5) ->  | I5: =_xlfn.IFNA(_xlfn.FORMULATEXT(INDIRECT("'"&I$3&"'!"&$I$1&$C5)),"") ->  | J5: =_xlfn.IFNA(_xlfn.FORMULATEXT(INDIRECT("'"&J$3&"'!"&$I$1&$C5)),"") ->  | K5: =_xlfn.IFNA(_xlfn.FORMULATEXT(INDIRECT("'"&K$3&"'!"&$I$1&$C5)),"") ->  | L5: =_xlfn.IFNA(_xlfn.FORMULATEXT(INDIRECT("'"&L$3&"'!"&$I$1&$C5)),"") ->  | O5: Refer To: =GET.WORKBOOK(1)&T(NOW())
A6: =AND(D6=E6:G6,I6=J6:L6) ->  | C6: 3 | D6: =INDIRECT("'"&D$3&"'!"&$D$1&$C6) ->  | E6: =INDIRECT("'"&E$3&"'!"&$D$1&$C6) ->  | F6: =INDIRECT("'"&F$3&"'!"&$D$1&$C6) ->  | G6: =INDIRECT("'"&G$3&"'!"&$D$1&$C6) ->  | I6: =_xlfn.IFNA(_xlfn.FORMULATEXT(INDIRECT("'"&I$3&"'!"&$I$1&$C6)),"") ->  | J6: =_xlfn.IFNA(_xlfn.FORMULATEXT(INDIRECT("'"&J$3&"'!"&$I$1&$C6)),"") ->  | K6: =_xlfn.IFNA(_xlfn.FORMULATEXT(INDIRECT("'"&K$3&"'!"&$I$1&$C6)),"") ->  | L6: =_xlfn.IFNA(_xlfn.FORMULATEXT(INDIRECT("'"&L$3&"'!"&$I$1&$C6)),"") ->  | O6: This generates the following array:
A7: =AND(D7=E7:G7,I7=J7:L7) ->  | C7: 4 | D7: =INDIRECT("'"&D$3&"'!"&$D$1&$C7) ->  | E7: =INDIRECT("'"&E$3&"'!"&$D$1&$C7) ->  | F7: =INDIRECT("'"&F$3&"'!"&$D$1&$C7) ->  | G7: =INDIRECT("'"&G$3&"'!"&$D$1&$C7) ->  | I7: =_xlfn.IFNA(_xlfn.FORMULATEXT(INDIRECT("'"&I$3&"'!"&$I$1&$C7)),"") ->  | J7: =_xlfn.IFNA(_xlfn.FORMULATEXT(INDIRECT("'"&J$3&"'!"&$I$1&$C7)),"") ->  | K7: =_xlfn.IFNA(_xlfn.FORMULATEXT(INDIRECT("'"&K$3&"'!"&$I$1&$C7)),"") ->  | L7: =_xlfn.IFNA(_xlfn.FORMULATEXT(INDIRECT("'"&L$3&"'!"&$I$1&$C7)),"") ->  | O7: =Names_Sheets -> 
A8: =AND(D8=E8:G8,I8=J8:L8) ->  | C8: 5 | D8: =INDIRECT("'"&D$3&"'!"&$D$1&$C8) ->  | E8: =INDIRECT("'"&E$3&"'!"&$D$1&$C8) ->  | F8: =INDIRECT("'"&F$3&"'!"&$D$1&$C8) ->  | G8: =INDIRECT("'"&G$3&"'!"&$D$1&$C8) ->  | I8: =_xlfn.IFNA(_xlfn.FORMULATEXT(INDIRECT("'"&I$3&"'!"&$I$1&$C8)),"") ->  | J8: =_xlfn.IFNA(_xlfn.FORMULATEXT(INDIRECT("'"&J$3&"'!"&$I$1&$C8)),"") ->  | K8: =_xlfn.IFNA(_xlfn.FORMULATEXT(INDIRECT("'"&K$3&"'!"&$I$1&$C8)),"") ->  | L8: =_xlfn.IFNA(_xlfn.FORMULATEXT(INDIRECT("'"&L$3&"'!"&$I$1&$C8)),"") -> 
A9: =AND(D9=E9:G9,I9=J9:L9) ->  | C9: 6 | D9: =INDIRECT("'"&D$3&"'!"&$D$1&$C9) ->  | E9: =INDIRECT("'"&E$3&"'!"&$D$1&$C9) ->  | F9: =INDIRECT("'"&F$3&"'!"&$D$1&$C9) ->  | G9: =INDIRECT("'"&G$3&"'!"&$D$1&$C9) ->  | I9: =_xlfn.IFNA(_xlfn.FORMULATEXT(INDIRECT("'"&I$3&"'!"&$I$1&$C9)),"") ->  | J9: =_xlfn.IFNA(_xlfn.FORMULATEXT(INDIRECT("'"&J$3&"'!"&$I$1&$C9)),"") ->  | K9: =_xlfn.IFNA(_xlfn.FORMULATEXT(INDIRECT("'"&K$3&"'!"&$I$1&$C9)),"") ->  | L9: =_xlfn.IFNA(_xlfn.FORMULATEXT(INDIRECT("'"&L$3&"'!"&$I$1&$C9)),"") ->  | O9: GET NAMES AS DEMONSTRATED
A10: =AND(D10=E10:G10,I10=J10:L10) ->  | C10: 7 | D10: =INDIRECT("'"&D$3&"'!"&$D$1&$C10) ->  | E10: =INDIRECT("'"&E$3&"'!"&$D$1&$C10) ->  | F10: =INDIRECT("'"&F$3&"'!"&$D$1&$C10) ->  | G10: =INDIRECT("'"&G$3&"'!"&$D$1&$C10) ->  | I10: =_xlfn.IFNA(_xlfn.FORMULATEXT(INDIRECT("'"&I$3&"'!"&$I$1&$C10)),"") ->  | J10: =_xlfn.IFNA(_xlfn.FORMULATEXT(INDIRECT("'"&J$3&"'!"&$I$1&$C10)),"") ->  | K10: =_xlfn.IFNA(_xlfn.FORMULATEXT(INDIRECT("'"&K$3&"'!"&$I$1&$C10)),"") ->  | L10: =_xlfn.IFNA(_xlfn.FORMULATEXT(INDIRECT("'"&L$3&"'!"&$I$1&$C10)),"") ->  | O10: Step 2: After creating the defined name as above, enter this formula in cell A1 & copy down till you encounter a blank:
A11: =AND(D11=E11:G11,I11=J11:L11) ->  | C11: 8 | D11: =INDIRECT("'"&D$3&"'!"&$D$1&$C11) ->  | E11: =INDIRECT("'"&E$3&"'!"&$D$1&$C11) ->  | F11: =INDIRECT("'"&F$3&"'!"&$D$1&$C11) ->  | G11: =INDIRECT("'"&G$3&"'!"&$D$1&$C11) ->  | I11: =_xlfn.IFNA(_xlfn.FORMULATEXT(INDIRECT("'"&I$3&"'!"&$I$1&$C11)),"") ->  | J11: =_xlfn.IFNA(_xlfn.FORMULATEXT(INDIRECT("'"&J$3&"'!"&$I$1&$C11)),"") ->  | K11: =_xlfn.IFNA(_xlfn.FORMULATEXT(INDIRECT("'"&K$3&"'!"&$I$1&$C11)),"") ->  | L11: =_xlfn.IFNA(_xlfn.FORMULATEXT(INDIRECT("'"&L$3&"'!"&$I$1&$C11)),"") ->  | O11: =IFERROR(INDEX(MID(Names_Sheets,FIND("]",Names_Sheets)+1,255),ROWS(A$1:A1)),"")
A12: =AND(D12=E12:G12,I12=J12:L12) ->  | C12: 9 | D12: =INDIRECT("'"&D$3&"'!"&$D$1&$C12) ->  | E12: =INDIRECT("'"&E$3&"'!"&$D$1&$C12) ->  | F12: =INDIRECT("'"&F$3&"'!"&$D$1&$C12) ->  | G12: =INDIRECT("'"&G$3&"'!"&$D$1&$C12) ->  | I12: =_xlfn.IFNA(_xlfn.FORMULATEXT(INDIRECT("'"&I$3&"'!"&$I$1&$C12)),"") ->  | J12: =_xlfn.IFNA(_xlfn.FORMULATEXT(INDIRECT("'"&J$3&"'!"&$I$1&$C12)),"") ->  | K12: =_xlfn.IFNA(_xlfn.FORMULATEXT(INDIRECT("'"&K$3&"'!"&$I$1&$C12)),"") ->  | L12: =_xlfn.IFNA(_xlfn.FORMULATEXT(INDIRECT("'"&L$3&"'!"&$I$1&$C12)),"") -> 
A13: =AND(D13=E13:G13,I13=J13:L13) ->  | C13: 10 | D13: =INDIRECT("'"&D$3&"'!"&$D$1&$C13) ->  | E13: =INDIRECT("'"&E$3&"'!"&$D$1&$C13) ->  | F13: =INDIRECT("'"&F$3&"'!"&$D$1&$C13) ->  | G13: =INDIRECT("'"&G$3&"'!"&$D$1&$C13) ->  | I13: =_xlfn.IFNA(_xlfn.FORMULATEXT(INDIRECT("'"&I$3&"'!"&$I$1&$C13)),"") ->  | J13: =_xlfn.IFNA(_xlfn.FORMULATEXT(INDIRECT("'"&J$3&"'!"&$I$1&$C13)),"") ->  | K13: =_xlfn.IFNA(_xlfn.FORMULATEXT(INDIRECT("'"&K$3&"'!"&$I$1&$C13)),"") ->  | L13: =_xlfn.IFNA(_xlfn.FORMULATEXT(INDIRECT("'"&L$3&"'!"&$I$1&$C13)),"") ->  | O13: ALTERNATIVE 1
A14: =AND(D14=E14:G14,I14=J14:L14) ->  | C14: 11 | D14: =INDIRECT("'"&D$3&"'!"&$D$1&$C14) ->  | E14: =INDIRECT("'"&E$3&"'!"&$D$1&$C14) ->  | F14: =INDIRECT("'"&F$3&"'!"&$D$1&$C14) ->  | G14: =INDIRECT("'"&G$3&"'!"&$D$1&$C14) ->  | I14: =_xlfn.IFNA(_xlfn.FORMULATEXT(INDIRECT("'"&I$3&"'!"&$I$1&$C14)),"") ->  | J14: =_xlfn.IFNA(_xlfn.FORMULATEXT(INDIRECT("'"&J$3&"'!"&$I$1&$C14)),"") ->  | K14: =_xlfn.IFNA(_xlfn.FORMULATEXT(INDIRECT("'"&K$3&"'!"&$I$1&$C14)),"") ->  | L14: =_xlfn.IFNA(_xlfn.FORMULATEXT(INDIRECT("'"&L$3&"'!"&$I$1&$C14)),"") ->  | O14: Step 2: If you just want a list of the sheets you can use this simpler formula:
A15: =AND(D15=E15:G15,I15=J15:L15) ->  | C15: 12 | D15: =INDIRECT("'"&D$3&"'!"&$D$1&$C15) ->  | E15: =INDIRECT("'"&E$3&"'!"&$D$1&$C15) ->  | F15: =INDIRECT("'"&F$3&"'!"&$D$1&$C15) ->  | G15: =INDIRECT("'"&G$3&"'!"&$D$1&$C15) ->  | I15: =_xlfn.IFNA(_xlfn.FORMULATEXT(INDIRECT("'"&I$3&"'!"&$I$1&$C15)),"") ->  | J15: =_xlfn.IFNA(_xlfn.FORMULATEXT(INDIRECT("'"&J$3&"'!"&$I$1&$C15)),"") ->  | K15: =_xlfn.IFNA(_xlfn.FORMULATEXT(INDIRECT("'"&K$3&"'!"&$I$1&$C15)),"") ->  | L15: =_xlfn.IFNA(_xlfn.FORMULATEXT(INDIRECT("'"&L$3&"'!"&$I$1&$C15)),"") ->  | O15: =TEXTAFTER(Names_Sheets,"]")
A16: =AND(D16=E16:G16,I16=J16:L16) ->  | C16: 13 | D16: =INDIRECT("'"&D$3&"'!"&$D$1&$C16) ->  | E16: =INDIRECT("'"&E$3&"'!"&$D$1&$C16) ->  | F16: =INDIRECT("'"&F$3&"'!"&$D$1&$C16) ->  | G16: =INDIRECT("'"&G$3&"'!"&$D$1&$C16) ->  | I16: =_xlfn.IFNA(_xlfn.FORMULATEXT(INDIRECT("'"&I$3&"'!"&$I$1&$C16)),"") ->  | J16: =_xlfn.IFNA(_xlfn.FORMULATEXT(INDIRECT("'"&J$3&"'!"&$I$1&$C16)),"") ->  | K16: =_xlfn.IFNA(_xlfn.FORMULATEXT(INDIRECT("'"&K$3&"'!"&$I$1&$C16)),"") ->  | L16: =_xlfn.IFNA(_xlfn.FORMULATEXT(INDIRECT("'"&L$3&"'!"&$I$1&$C16)),"") ->  | O16: =_xlfn.TEXTAFTER(Names_Sheets,"]") -> 
A17: =AND(D17=E17:G17,I17=J17:L17) ->  | C17: 14 | D17: =INDIRECT("'"&D$3&"'!"&$D$1&$C17) ->  | E17: =INDIRECT("'"&E$3&"'!"&$D$1&$C17) ->  | F17: =INDIRECT("'"&F$3&"'!"&$D$1&$C17) ->  | G17: =INDIRECT("'"&G$3&"'!"&$D$1&$C17) ->  | I17: =_xlfn.IFNA(_xlfn.FORMULATEXT(INDIRECT("'"&I$3&"'!"&$I$1&$C17)),"") ->  | J17: =_xlfn.IFNA(_xlfn.FORMULATEXT(INDIRECT("'"&J$3&"'!"&$I$1&$C17)),"") ->  | K17: =_xlfn.IFNA(_xlfn.FORMULATEXT(INDIRECT("'"&K$3&"'!"&$I$1&$C17)),"") ->  | L17: =_xlfn.IFNA(_xlfn.FORMULATEXT(INDIRECT("'"&L$3&"'!"&$I$1&$C17)),"") -> 
A18: =AND(D18=E18:G18,I18=J18:L18) ->  | C18: 15 | D18: =INDIRECT("'"&D$3&"'!"&$D$1&$C18) ->  | E18: =INDIRECT("'"&E$3&"'!"&$D$1&$C18) ->  | F18: =INDIRECT("'"&F$3&"'!"&$D$1&$C18) ->  | G18: =INDIRECT("'"&G$3&"'!"&$D$1&$C18) ->  | I18: =_xlfn.IFNA(_xlfn.FORMULATEXT(INDIRECT("'"&I$3&"'!"&$I$1&$C18)),"") ->  | J18: =_xlfn.IFNA(_xlfn.FORMULATEXT(INDIRECT("'"&J$3&"'!"&$I$1&$C18)),"") ->  | K18: =_xlfn.IFNA(_xlfn.FORMULATEXT(INDIRECT("'"&K$3&"'!"&$I$1&$C18)),"") ->  | L18: =_xlfn.IFNA(_xlfn.FORMULATEXT(INDIRECT("'"&L$3&"'!"&$I$1&$C18)),"") ->  | O18: ALTERNATIVE 2
A19: =AND(D19=E19:G19,I19=J19:L19) ->  | C19: 16 | D19: =INDIRECT("'"&D$3&"'!"&$D$1&$C19) ->  | E19: =INDIRECT("'"&E$3&"'!"&$D$1&$C19) ->  | F19: =INDIRECT("'"&F$3&"'!"&$D$1&$C19) ->  | G19: =INDIRECT("'"&G$3&"'!"&$D$1&$C19) ->  | I19: =_xlfn.IFNA(_xlfn.FORMULATEXT(INDIRECT("'"&I$3&"'!"&$I$1&$C19)),"") ->  | J19: =_xlfn.IFNA(_xlfn.FORMULATEXT(INDIRECT("'"&J$3&"'!"&$I$1&$C19)),"") ->  | K19: =_xlfn.IFNA(_xlfn.FORMULATEXT(INDIRECT("'"&K$3&"'!"&$I$1&$C19)),"") ->  | L19: =_xlfn.IFNA(_xlfn.FORMULATEXT(INDIRECT("'"&L$3&"'!"&$I$1&$C19)),"") ->  | O19: Step 2: If you just want specific sheets you can use this:
A20: =AND(D20=E20:G20,I20=J20:L20) ->  | C20: 17 | D20: =INDIRECT("'"&D$3&"'!"&$D$1&$C20) ->  | E20: =INDIRECT("'"&E$3&"'!"&$D$1&$C20) ->  | F20: =INDIRECT("'"&F$3&"'!"&$D$1&$C20) ->  | G20: =INDIRECT("'"&G$3&"'!"&$D$1&$C20) ->  | I20: =_xlfn.IFNA(_xlfn.FORMULATEXT(INDIRECT("'"&I$3&"'!"&$I$1&$C20)),"") ->  | J20: =_xlfn.IFNA(_xlfn.FORMULATEXT(INDIRECT("'"&J$3&"'!"&$I$1&$C20)),"") ->  | K20: =_xlfn.IFNA(_xlfn.FORMULATEXT(INDIRECT("'"&K$3&"'!"&$I$1&$C20)),"") ->  | L20: =_xlfn.IFNA(_xlfn.FORMULATEXT(INDIRECT("'"&L$3&"'!"&$I$1&$C20)),"") ->  | O20: =INDEX(TEXTAFTER(Names_Sheets,"]"),O18)
A21: =AND(D21=E21:G21,I21=J21:L21) ->  | C21: 18 | D21: =INDIRECT("'"&D$3&"'!"&$D$1&$C21) ->  | E21: =INDIRECT("'"&E$3&"'!"&$D$1&$C21) ->  | F21: =INDIRECT("'"&F$3&"'!"&$D$1&$C21) ->  | G21: =INDIRECT("'"&G$3&"'!"&$D$1&$C21) ->  | I21: =_xlfn.IFNA(_xlfn.FORMULATEXT(INDIRECT("'"&I$3&"'!"&$I$1&$C21)),"") ->  | J21: =_xlfn.IFNA(_xlfn.FORMULATEXT(INDIRECT("'"&J$3&"'!"&$I$1&$C21)),"") ->  | K21: =_xlfn.IFNA(_xlfn.FORMULATEXT(INDIRECT("'"&K$3&"'!"&$I$1&$C21)),"") ->  | L21: =_xlfn.IFNA(_xlfn.FORMULATEXT(INDIRECT("'"&L$3&"'!"&$I$1&$C21)),"") ->  | O21: 1 | P21: 2 | Q21: 3 | R21: 4
A22: =AND(D22=E22:G22,I22=J22:L22) ->  | C22: 19 | D22: =INDIRECT("'"&D$3&"'!"&$D$1&$C22) ->  | E22: =INDIRECT("'"&E$3&"'!"&$D$1&$C22) ->  | F22: =INDIRECT("'"&F$3&"'!"&$D$1&$C22) ->  | G22: =INDIRECT("'"&G$3&"'!"&$D$1&$C22) ->  | I22: =_xlfn.IFNA(_xlfn.FORMULATEXT(INDIRECT("'"&I$3&"'!"&$I$1&$C22)),"") ->  | J22: =_xlfn.IFNA(_xlfn.FORMULATEXT(INDIRECT("'"&J$3&"'!"&$I$1&$C22)),"") ->  | K22: =_xlfn.IFNA(_xlfn.FORMULATEXT(INDIRECT("'"&K$3&"'!"&$I$1&$C22)),"") ->  | L22: =_xlfn.IFNA(_xlfn.FORMULATEXT(INDIRECT("'"&L$3&"'!"&$I$1&$C22)),"") ->  | O22: =INDEX(_xlfn.TEXTAFTER(Names_Sheets,"]"),O21) ->  | P22: =INDEX(_xlfn.TEXTAFTER(Names_Sheets,"]"),P21) ->  | Q22: =INDEX(_xlfn.TEXTAFTER(Names_Sheets,"]"),Q21) ->  | R22: =INDEX(_xlfn.TEXTAFTER(Names_Sheets,"]"),R21) -> 
A23: =AND(D23=E23:G23,I23=J23:L23) ->  | C23: 20 | D23: =INDIRECT("'"&D$3&"'!"&$D$1&$C23) ->  | E23: =INDIRECT("'"&E$3&"'!"&$D$1&$C23) ->  | F23: =INDIRECT("'"&F$3&"'!"&$D$1&$C23) ->  | G23: =INDIRECT("'"&G$3&"'!"&$D$1&$C23) ->  | I23: =_xlfn.IFNA(_xlfn.FORMULATEXT(INDIRECT("'"&I$3&"'!"&$I$1&$C23)),"") ->  | J23: =_xlfn.IFNA(_xlfn.FORMULATEXT(INDIRECT("'"&J$3&"'!"&$I$1&$C23)),"") ->  | K23: =_xlfn.IFNA(_xlfn.FORMULATEXT(INDIRECT("'"&K$3&"'!"&$I$1&$C23)),"") ->  | L23: =_xlfn.IFNA(_xlfn.FORMULATEXT(INDIRECT("'"&L$3&"'!"&$I$1&$C23)),"") ->  | O23: (This is the implimentation I have used in cells D3:G3)
A24: =AND(D24=E24:G24,I24=J24:L24) ->  | C24: 21 | D24: =INDIRECT("'"&D$3&"'!"&$D$1&$C24) ->  | E24: =INDIRECT("'"&E$3&"'!"&$D$1&$C24) ->  | F24: =INDIRECT("'"&F$3&"'!"&$D$1&$C24) ->  | G24: =INDIRECT("'"&G$3&"'!"&$D$1&$C24) ->  | I24: =_xlfn.IFNA(_xlfn.FORMULATEXT(INDIRECT("'"&I$3&"'!"&$I$1&$C24)),"") ->  | J24: =_xlfn.IFNA(_xlfn.FORMULATEXT(INDIRECT("'"&J$3&"'!"&$I$1&$C24)),"") ->  | K24: =_xlfn.IFNA(_xlfn.FORMULATEXT(INDIRECT("'"&K$3&"'!"&$I$1&$C24)),"") ->  | L24: =_xlfn.IFNA(_xlfn.FORMULATEXT(INDIRECT("'"&L$3&"'!"&$I$1&$C24)),"") -> 
A25: =AND(D25=E25:G25,I25=J25:L25) ->  | C25: 22 | D25: =INDIRECT("'"&D$3&"'!"&$D$1&$C25) ->  | E25: =INDIRECT("'"&E$3&"'!"&$D$1&$C25) ->  | F25: =INDIRECT("'"&F$3&"'!"&$D$1&$C25) ->  | G25: =INDIRECT("'"&G$3&"'!"&$D$1&$C25) ->  | I25: =_xlfn.IFNA(_xlfn.FORMULATEXT(INDIRECT("'"&I$3&"'!"&$I$1&$C25)),"") ->  | J25: =_xlfn.IFNA(_xlfn.FORMULATEXT(INDIRECT("'"&J$3&"'!"&$I$1&$C25)),"") ->  | K25: =_xlfn.IFNA(_xlfn.FORMULATEXT(INDIRECT("'"&K$3&"'!"&$I$1&$C25)),"") ->  | L25: =_xlfn.IFNA(_xlfn.FORMULATEXT(INDIRECT("'"&L$3&"'!"&$I$1&$C25)),"") -> 
A26: =AND(D26=E26:G26,I26=J26:L26) ->  | C26: 23 | D26: =INDIRECT("'"&D$3&"'!"&$D$1&$C26) ->  | E26: =INDIRECT("'"&E$3&"'!"&$D$1&$C26) ->  | F26: =INDIRECT("'"&F$3&"'!"&$D$1&$C26) ->  | G26: =INDIRECT("'"&G$3&"'!"&$D$1&$C26) ->  | I26: =_xlfn.IFNA(_xlfn.FORMULATEXT(INDIRECT("'"&I$3&"'!"&$I$1&$C26)),"") ->  | J26: =_xlfn.IFNA(_xlfn.FORMULATEXT(INDIRECT("'"&J$3&"'!"&$I$1&$C26)),"") ->  | K26: =_xlfn.IFNA(_xlfn.FORMULATEXT(INDIRECT("'"&K$3&"'!"&$I$1&$C26)),"") ->  | L26: =_xlfn.IFNA(_xlfn.FORMULATEXT(INDIRECT("'"&L$3&"'!"&$I$1&$C26)),"") -> 
A27: =AND(D27=E27:G27,I27=J27:L27) ->  | C27: 24 | D27: =INDIRECT("'"&D$3&"'!"&$D$1&$C27) ->  | E27: =INDIRECT("'"&E$3&"'!"&$D$1&$C27) ->  | F27: =INDIRECT("'"&F$3&"'!"&$D$1&$C27) ->  | G27: =INDIRECT("'"&G$3&"'!"&$D$1&$C27) ->  | I27: =_xlfn.IFNA(_xlfn.FORMULATEXT(INDIRECT("'"&I$3&"'!"&$I$1&$C27)),"") ->  | J27: =_xlfn.IFNA(_xlfn.FORMULATEXT(INDIRECT("'"&J$3&"'!"&$I$1&$C27)),"") ->  | K27: =_xlfn.IFNA(_xlfn.FORMULATEXT(INDIRECT("'"&K$3&"'!"&$I$1&$C27)),"") ->  | L27: =_xlfn.IFNA(_xlfn.FORMULATEXT(INDIRECT("'"&L$3&"'!"&$I$1&$C27)),"") -> 
A28: =AND(D28=E28:G28,I28=J28:L28) ->  | C28: 25 | D28: =INDIRECT("'"&D$3&"'!"&$D$1&$C28) ->  | E28: =INDIRECT("'"&E$3&"'!"&$D$1&$C28) ->  | F28: =INDIRECT("'"&F$3&"'!"&$D$1&$C28) ->  | G28: =INDIRECT("'"&G$3&"'!"&$D$1&$C28) ->  | I28: =_xlfn.IFNA(_xlfn.FORMULATEXT(INDIRECT("'"&I$3&"'!"&$I$1&$C28)),"") ->  | J28: =_xlfn.IFNA(_xlfn.FORMULATEXT(INDIRECT("'"&J$3&"'!"&$I$1&$C28)),"") ->  | K28: =_xlfn.IFNA(_xlfn.FORMULATEXT(INDIRECT("'"&K$3&"'!"&$I$1&$C28)),"") ->  | L28: =_xlfn.IFNA(_xlfn.FORMULATEXT(INDIRECT("'"&L$3&"'!"&$I$1&$C28)),"") -> 
D41: =IFERROR(INDEX(MID(Names_Sheets,FIND("]",Names_Sheets)+1,255),ROWS(A$1:A12)),"") -> 
D42: =IFERROR(INDEX(MID(Names_Sheets,FIND("]",Names_Sheets)+1,255),ROWS(A$1:A13)),"") -> 
D43: =IFERROR(INDEX(MID(Names_Sheets,FIND("]",Names_Sheets)+1,255),ROWS(A$1:A14)),"") -> 

Sheet Loans
A1: "Is there a way i can input my bills over a period and get a summary of what is due each month? For example if I had a loan for 2 years - can I make some type of graph / table which could show me what I need to pay in each of the current months? A bit simple with just one loan but I'd like to do for a number of loans, different amounts and payment dates and end dates."
B5: Loan | C5: Start | D5: Months | E5: Monthly | G5: 2024-01-01 | H5: 2024-02-01 | I5: 2024-03-01 | J5: 2024-04-01 | K5: 2024-05-01 | L5: 2024-06-01 | M5: 2024-07-01 | N5: 2024-08-01 | O5: 2024-09-01 | P5: 2024-10-01 | Q5: 2024-11-01 | R5: 2024-12-01 | S5: 2025-01-01 | T5: 2025-02-01 | U5: 2025-03-01 | V5: 2025-04-01 | W5: 2025-05-01 | X5: 2025-06-01 | Y5: 2025-07-01 | Z5: 2025-08-01 | AA5: 2025-09-01 | AB5: 2025-10-01 | AC5: 2025-11-01 | AD5: 2025-12-01
B6: A | C6: 2024-02-01 | D6: 12 | E6: 100 | G6: =IF(AND(G$5>=$C6,G$5<=EOMONTH($C6,$D6-1)),$E6,0) -> 0 | H6: =IF(AND(H$5>=$C6,H$5<=EOMONTH($C6,$D6-1)),$E6,0) -> 100 | I6: 100 | J6: 100 | K6: 100 | L6: 100 | M6: 100 | N6: 100 | O6: 100 | P6: 100 | Q6: 100 | R6: 100 | S6: 100 | T6: 0 | U6: 0 | V6: 0 | W6: 0 | X6: 0 | Y6: 0 | Z6: 0 | AA6: 0 | AB6: 0 | AC6: 0 | AD6: 0
B7: B | C7: 2024-04-01 | D7: 6 | E7: 200 | G7: =IF(AND(G$5>=$C7,G$5<=EOMONTH($C7,$D7-1)),$E7,0) -> 0 | H7: 0 | I7: 0 | J7: 200 | K7: 200 | L7: 200 | M7: 200 | N7: 200 | O7: 200 | P7: 0 | Q7: 0 | R7: 0 | S7: 0 | T7: 0 | U7: 0 | V7: 0 | W7: 0 | X7: 0 | Y7: 0 | Z7: 0 | AA7: 0 | AB7: 0 | AC7: 0 | AD7: 0
B8: C | C8: 2024-06-01 | D8: 18 | E8: 300 | G8: 0 | H8: 0 | I8: 0 | J8: 0 | K8: 0 | L8: 300 | M8: 300 | N8: 300 | O8: 300 | P8: 300 | Q8: 300 | R8: 300 | S8: 300 | T8: 300 | U8: 300 | V8: 300 | W8: 300 | X8: 300 | Y8: 300 | Z8: 300 | AA8: 300 | AB8: 300 | AC8: 300 | AD8: 0
F10: Total | G10: =SUM(G6:G9) -> 0 | H10: =SUM(H6:H9) -> 100 | I10: 100 | J10: 300 | K10: 300 | L10: 600 | M10: 600 | N10: 600 | O10: 600 | P10: 400 | Q10: 400 | R10: 400 | S10: 400 | T10: 300 | U10: 300 | V10: 300 | W10: 300 | X10: 300 | Y10: 300 | Z10: 300 | AA10: 300 | AB10: 300 | AC10: 300 | AD10: 0

Sheet Cash Waterfall
A1: Opening M1 | B1: 10000
A2: Debtor receipts | B2: 5000
A3: Creditor payments | B3: -2000
A4: Loan repayment | B4: -100
A5: Wages | B5: -500
A6: Closing M1 | B6: =SUM(B1:B5) -> 12400
A7: Debtor receipts | B7: 4000
A8: Creditor payments | B8: -3500
A9: Loan repayment | B9: -100
A10: Wages | B10: -450
A11: Closing M2 | B11: =SUM(B6:B10) -> 12350

Sheet Apples Frequency
A1: Apples | C1: =_xlfn.UNIQUE(A1:A20) -> Apples | D1: =COUNTIFS(A1:A20,_xlfn.ANCHORARRAY(C1)) -> 9
A2: Apples | C2: Pears | D2: 4
A3: Apples | C3: Grapes | D3: 1
A4: Apples | C4: Strawberry | D4: 1
A5: Apples | C5: Bannanas | D5: 5
A6: Pears
A7: Grapes
A8: Strawberry
A9: Pears
A10: Bannanas
A11: Bannanas
A12: Bannanas
A13: Apples
A14: Apples
A15: Apples
A16: Pears
A17: Pears
A18: Bannanas
A19: Bannanas
A20: Apples

Sheet Comma Format Macro
A1: Sub comma_fmt()
A2: '
A3: ' comma_fmt Macro
A4: '
A6: '
A7: Selection.NumberFormat = "#,##0 ;(#,##0);- "
A9: End Sub
A11: Note, this macro is also within Module1 of this workbook. Press ALT+F11 to access VBA window.
